fUST/lending_fUST_20260111
["ID","MTS","AMOUNT","RATE_DAILY","PERIOD"]
[401298739,1768117838643,-151.0,0.0001,2]
[401298741,1768117838652,-151.0,0.0001,2]
[401298743,1768117838662,-151.0,0.0001,2]
[401298745,1768117838671,-151.0,0.0001,2]
[401298747,1768117838681,-151.0,0.0001,2]
[401298749,1768117838690,-151.0,0.0001,2]
[401298751,1768117838700,-151.0,0.0001,2]
[401298753,1768117838710,-151.0,0.0001,2]
[401298755,1768117838721,-151.0,0.0001,2]
[401298757,1768117838731,-151.0,0.0001,2]
[401298759,1768117838741,-151.0,0.0001,2]
[401298761,1768117838750,-151.0,0.0001,2]
[401298763,1768117838760,-151.0,0.0001,2]
[401298764,1768117838769,-151.0,0.0001,2]
[401298765,1768117838779,-154.07167593,0.0001,2]
[401298766,1768117838789,-1000.0,0.0001,2]
[401298767,1768117838799,-801.07,0.000101,2]
[401298768,1768117838812,-500.0,0.000101,2]
[401298769,1768117838822,-561.68,0.00010351,2]
[401298770,1768117838832,-500.0,0.00010374,2]
[401298771,1768117838843,-250.0,0.00010411,2]
[401298772,1768117838853,-801.07,0.000106,2]
[401298773,1768117838863,-500.0,0.00010648,2]
[401298774,1768117838873,-498.10880523,0.00010672,2]
[401298775,1768117838883,-864.0,0.00010701,2]
[401298776,1768117838894,-250.0,0.00010814,2]
[401298777,1768117838903,-624.09,0.00010895,2]
[401298778,1768117838913,-500.0,0.00010922,2]
[401298779,1768117838923,-151.0,0.00011,2]
[401298780,1768117838932,-500.0,0.00011196,2]
[401298781,1768117838942,-801.07,0.000112,2]
[401298782,1768117838951,-500.0,0.0001147,2]
[401298783,1768117838961,-500.0,0.00011486,2]
[401298784,1768117838970,-2580.0,0.00011486,2]
[401298785,1768117838980,-500.0,0.00011486,2]
[401298786,1768117838990,-283.8218406,0.00011486,2]
[401298787,1768117839000,-190.86169873,0.00011486,2]
[401298788,1768117839010,-171.51692933,0.00011486,2]
[401298789,1768117839020,-500.0,0.00011486,2]
[401298790,1768117839030,-176.23516734,0.00011486,2]
[401298791,1768117839043,-500.0,0.00011486,2]
[401298792,1768117839053,-500.0,0.00011486,2]
[401298793,1768117839067,-500.0,0.00011486,2]
[401298794,1768117839078,-171.65605742,0.00011486,2]
[401298795,1768117839089,-500.0,0.00011623,2]
[401298796,1768117839100,-2580.0,0.00011623,2]
[401298797,1768117839110,-500.0,0.00011623,2]
[401298798,1768117839125,-500.0,0.00011623,2]
[401298799,1768117839135,-598.52490689,0.00011623,2]
[401298800,1768117839145,-500.0,0.00011623,2]
[401298801,1768117839154,-503.05659276,0.00011623,2]
[401298802,1768117839164,-801.07,0.000117,2]
[401298803,1768117839174,-500.0,0.00011744,2]
[401298804,1768117839183,-163.14839871,0.0001176,2]
[401298805,1768117839193,-500.0,0.0001176,2]
[401298806,1768117839203,-2580.0,0.0001176,2]
[401298807,1768117839213,-500.0,0.0001176,2]
[401298808,1768117839225,-500.0,0.0001176,2]
[401298809,1768117839236,-179.07075974,0.0001176,2]
[401298810,1768117839247,-500.0,0.0001176,2]
[401298811,1768117839257,-1000.0,0.00011772,2]
[401298812,1768117839268,-500.0,0.00011897,2]
[401298813,1768117839278,-2580.0,0.00011897,2]
[401298814,1768117839289,-500.0,0.00011897,2]
[401298815,1768117839299,-500.0,0.00011897,2]
[401298816,1768117839309,-500.0,0.00011897,2]
[401298817,1768117839319,-500.0,0.00012018,2]
[401298818,1768117839329,-2580.0,0.00012034,2]
[401298819,1768117839339,-500.0,0.00012034,2]
[401298820,1768117839348,-537.35985221,0.00012034,2]
[401298821,1768117839359,-263.97622948,0.00012034,2]
[401298822,1768117839369,-483.81749546,0.00012034,2]
[401298823,1768117839379,-264.95729538,0.00012034,2]
[401298824,1768117839389,-500.0,0.00012034,2]
[401298825,1768117839399,-500.0,0.00012055,2]
[401298826,1768117839408,-500.0,0.00012055,2]
[401298827,1768117839418,-500.0,0.00012055,2]
[401298828,1768117839428,-500.0,0.00012055,2]
[401298829,1768117839438,-500.0,0.00012055,2]
[401298830,1768117839447,-154.30171575,0.00012055,2]
[401298831,1768117839457,-2580.0,0.00012171,2]
[401298832,1768117839467,-500.0,0.00012171,2]
[401298833,1768117839476,-500.0,0.00012171,2]
[401298834,1768117839486,-500.0,0.00012192,2]
[401298835,1768117839495,-500.0,0.00012192,2]
[401298836,1768117839505,-500.0,0.00012192,2]
[401298837,1768117839515,-500.0,0.00012192,2]
[401298838,1768117839524,-500.0,0.00012192,2]
[401298839,1768117839534,-201.95802809,0.00012192,2]
[401298840,1768117839544,-801.07,0.000122,2]
[401298841,1768117839553,-500.0,0.00012292,2]
[401298842,1768117839563,-2580.0,0.00012308,2]
[401298843,1768117839734,-500.0,0.00012308,2]
[401298844,1768117839745,-500.0,0.00012308,2]
[401298845,1768117839754,-223.56062369,0.00012329,2]
[401298846,1768117839764,-500.0,0.00012329,2]
[401298847,1768117839774,-500.0,0.00012329,2]
[401298848,1768117839784,-500.0,0.00012329,2]
[401298849,1768117839794,-500.0,0.00012329,2]
[401298850,1768117839806,-500.0,0.00012329,2]
[401298851,1768117839815,-500.0,0.00012329,2]
[401298852,1768117839825,-500.0,0.00012329,2]
[401298853,1768117839835,-500.0,0.00012329,2]
[401298854,1768117839844,-500.0,0.00012329,2]
[401298855,1768117839854,-500.0,0.00012329,2]
[401298856,1768117839863,-500.0,0.00012329,2]
[401298857,1768117839872,-500.0,0.00012329,2]
[401298858,1768117839881,-500.0,0.00012329,2]
[401298859,1768117839891,-500.0,0.00012329,2]
[401298860,1768117839901,-500.0,0.00012329,2]
[401298861,1768117839913,-500.0,0.00012329,2]
[401298862,1768117839922,-500.0,0.00012329,2]
[401298864,1768117839932,-500.0,0.00012329,2]
[401298866,1768117839941,-500.0,0.00012329,2]
[401298867,1768117839949,-500.0,0.00012329,2]
[401298869,1768117839959,-500.0,0.00012329,2]
[401298871,1768117839968,-500.0,0.00012329,2]
[401298872,1768117839978,-500.0,0.00012329,2]
[401298873,1768117839987,-500.0,0.00012329,2]
[401298874,1768117839997,-412.72956045,0.00012329,2]
[401298875,1768117840007,-500.0,0.00012329,2]
[401298877,1768117840016,-500.0,0.00012329,2]
[401298879,1768117840025,-1214.53268105,0.00012329,2]
[401298881,1768117840035,-1214.53268105,0.00012329,2]
[401298882,1768117840044,-1214.53268105,0.00012329,2]
[401298884,1768117840053,-1214.53268105,0.00012329,2]
[401298885,1768117840063,-1214.53268105,0.00012329,2]
[401298886,1768117840073,-1214.53268105,0.00012329,2]
[401298887,1768117840082,-1214.53268105,0.00012329,2]
[401298888,1768117840091,-1214.53268105,0.00012329,2]
[401298889,1768117840101,-1214.53268105,0.00012329,2]
[401298891,1768117840110,-1214.53268105,0.00012329,2]
[401298893,1768117840120,-1214.53268105,0.00012329,2]
[401298894,1768117840129,-1214.53268105,0.00012329,2]
[401298895,1768117840138,-1214.53268105,0.00012329,2]
[401298896,1768117840148,-1214.53268105,0.00012329,2]
[401298897,1768117840158,-1214.53268105,0.00012329,2]
[401298898,1768117840167,-1214.53268105,0.00012329,2]
[401298899,1768117840176,-1214.53268105,0.00012329,2]
[401298900,1768117840185,-1214.53268105,0.00012329,2]
[401298901,1768117840194,-1214.53268105,0.00012329,2]
[401298902,1768117840203,-1214.53268105,0.00012329,2]
[401298903,1768117840213,-1214.53268105,0.00012329,2]
[401298904,1768117840222,-1214.53268105,0.00012329,2]
[401298905,1768117840231,-1214.53268105,0.00012329,2]
[401298906,1768117840240,-1214.53268105,0.00012329,2]
[401298907,1768117840249,-1214.53268105,0.00012329,2]
[401298908,1768117840258,-1214.53268105,0.00012329,2]
[401298909,1768117840267,-1214.53268105,0.00012329,2]
[401298910,1768117840277,-1214.53268105,0.00012329,2]
[401298911,1768117840287,-1214.53268105,0.00012329,2]
[401298912,1768117840296,-1214.53268105,0.00012329,2]
[401298913,1768117840305,-1214.53268105,0.00012329,2]
[401298914,1768117840314,-1214.53268105,0.00012329,2]
[401298915,1768117840323,-1214.53268105,0.00012329,2]
[401298916,1768117840332,-1214.53268105,0.00012329,2]
[401298917,1768117840342,-1214.53268105,0.00012329,2]
[401298918,1768117840352,-1214.53268105,0.00012329,2]
[401298919,1768117840362,-1214.53268105,0.00012329,2]
[401298920,1768117840371,-1214.53268105,0.00012329,2]
[401298921,1768117840381,-1214.53268105,0.00012329,2]
[401298922,1768117840390,-1214.53268105,0.00012329,2]
[401298923,1768117840400,-1214.53268105,0.00012329,2]
[401298924,1768117840409,-1214.53268105,0.00012329,2]
[401298925,1768117840419,-1214.53268105,0.00012329,2]
[401298926,1768117840429,-1214.53268105,0.00012329,2]
[401298927,1768117840439,-1214.53268105,0.00012329,2]
[401298928,1768117840449,-1214.53268105,0.00012329,2]
[401298929,1768117840458,-1214.53268105,0.00012329,2]
[401298930,1768117840468,-1209.32754098,0.00012329,2]
[401298931,1768117840477,-1209.32754098,0.00012329,2]
[401298932,1768117840487,-1209.32754098,0.00012329,2]
[401298933,1768117840496,-1209.32754098,0.00012329,2]
[401298934,1768117840506,-1209.32754098,0.00012329,2]
[401298935,1768117840515,-1209.32754098,0.00012329,2]
[401298937,1768117840525,-1209.32754098,0.00012329,2]
[401298939,1768117840534,-1209.32754098,0.00012329,2]
[401298940,1768117840544,-1209.32754098,0.00012329,2]
[401298941,1768117840553,-1209.32754098,0.00012329,2]
[401298942,1768117840562,-1209.32754098,0.00012329,2]
[401298943,1768117840572,-1209.32754098,0.00012329,2]
[401298944,1768117840594,-1209.32754098,0.00012329,2]
[401298945,1768117840605,-1209.32754098,0.00012329,2]
[401298946,1768117840615,-1209.32754098,0.00012329,2]
[401298947,1768117840625,-1209.32754098,0.00012329,2]
[401298948,1768117840638,-1209.32754098,0.00012329,2]
[401298949,1768117840648,-1209.32754098,0.00012329,2]
[401298950,1768117840659,-1209.32754098,0.00012329,2]
[401298951,1768117840669,-1209.32754095,0.00012329,2]
[401298952,1768117840679,-369.72,0.00012329,2]
[401298953,1768117840689,-2580.0,0.00012445,2]
[401298954,1768117840698,-500.0,0.00012445,2]
[401298955,1768117840709,-500.0,0.00012445,2]
[401298956,1768117840720,-500.0,0.00012466,2]
[401298957,1768117840730,-300.0,0.00012466,2]
[401298958,1768117840741,-500.0,0.00012466,2]
[401298959,1768117840751,-250.0,0.00012466,2]
[401298960,1768117840762,-500.0,0.00012566,2]
[401298961,1768117840771,-2580.0,0.00012582,2]
[401298962,1768117840782,-500.0,0.00012582,2]
[401298963,1768117840792,-500.0,0.00012582,2]
[401298964,1768117840805,-500.0,0.00012603,2]
[401298965,1768117840815,-500.0,0.00012603,2]
[401298966,1768117840825,-369.72,0.00012603,2]
[401298967,1768117840834,-3588.20550987,0.00012637,2]
[401298968,1768117840844,-574.09150433,0.00012672,2]
[401298969,1768117840853,-801.07,0.000127,2]
[401298970,1768117840863,-2580.0,0.00012719,2]
[401298971,1768117840874,-500.0,0.00012719,2]
[401298972,1768117840883,-500.0,0.00012719,2]
[401298973,1768117840894,-500.0,0.0001274,2]
[401298974,1768117840905,-500.0,0.0001274,2]
[401298975,1768117840915,-500.0,0.0001284,2]
[401298976,1768117840926,-2580.0,0.00012856,2]
[401298977,1768117840936,-623.15407208,0.00012856,2]
[401298978,1768117840947,-620.9785477,0.00012856,2]
[401298979,1768117840957,-500.00000003,0.00012877,2]
[401298980,1768117840968,-500.0,0.00012877,2]
[401298981,1768117840978,-369.72,0.00012877,2]
[401298982,1768117840989,-12757.2354021,0.000129,2]
[401298983,1768117840999,-12757.23540207,0.000129,2]
[401298984,1768117841010,-761.14775359,0.00012937,2]
[401298985,1768117841020,-1000.0,0.00012949,2]
[401298986,1768117841031,-244.0,0.00012949,2]
[401298987,1768117841041,-2580.0,0.00012993,2]
[401298988,1768117841051,-500.0,0.00013014,2]
[401298989,1768117841061,-500.0,0.00013114,2]
[401298990,1768117841072,-2580.0,0.0001313,2]
[401298991,1768117841083,-500.0,0.00013151,2]
[401298992,1768117841093,-369.72,0.00013151,2]
[401298993,1768117841104,-801.07,0.000132,2]
[401298994,1768117841114,-2580.0,0.00013267,2]
[401298995,1768117841124,-500.0,0.00013273,2]
[401298996,1768117841134,-500.0,0.00013273,2]
[401298997,1768117841143,-500.0,0.00013273,2]
[401298998,1768117841153,-500.0,0.00013273,2]
[401298999,1768117841163,-501.02698451,0.00013273,2]
[401299000,1768117841173,-500.0,0.00013273,2]
[401299001,1768117841182,-500.0,0.00013273,2]
[401299002,1768117841193,-500.0,0.00013273,2]
[401299003,1768117841202,-500.0,0.00013273,2]
[401299004,1768117841212,-500.0,0.00013273,2]
[401299005,1768117841222,-500.0,0.00013273,2]
[401299006,1768117841232,-500.0,0.00013273,2]
[401299007,1768117841241,-630.69173533,0.00013273,2]
[401299008,1768117841251,-500.0,0.00013273,2]
[401299009,1768117841262,-500.0,0.00013273,2]
[401299010,1768117841272,-500.0,0.00013273,2]
[401299011,1768117841282,-500.0,0.00013273,2]
[401299012,1768117841292,-500.0,0.00013273,2]
[401299013,1768117841301,-500.0,0.00013273,2]
[401299014,1768117841310,-500.0,0.00013273,2]
[401299015,1768117841320,-500.0,0.00013273,2]
[401299016,1768117841329,-500.0,0.00013273,2]
[401299017,1768117841338,-500.0,0.00013273,2]
[401299018,1768117841349,-500.0,0.00013273,2]
[401299019,1768117841359,-500.0,0.00013273,2]
[401299020,1768117841369,-500.0,0.00013273,2]
[401299021,1768117841380,-500.0,0.00013273,2]
[401299022,1768117841389,-500.0,0.00013273,2]
[401299023,1768117841398,-500.0,0.00013273,2]
[401299024,1768117841408,-500.0,0.00013273,2]
[401299025,1768117841418,-500.0,0.00013273,2]
[401299026,1768117841428,-500.0,0.00013273,2]
[401299027,1768117841438,-495.22027723,0.00013273,2]
[401299028,1768117841447,-500.0,0.00013273,2]
[401299029,1768117841458,-206.51680322,0.00013273,2]
[401299030,1768117841467,-501.21467235,0.00013273,2]
[401299031,1768117841476,-500.0,0.00013273,2]
[401299032,1768117841485,-500.0,0.00013273,2]
[401299033,1768117841493,-500.24269708,0.00013273,2]
[401299034,1768117841501,-500.0,0.00013273,2]
[401299035,1768117841509,-500.0,0.00013273,2]
[401299036,1768117841517,-500.0,0.00013273,2]
[401299037,1768117841525,-500.29461734,0.00013273,2]
[401299038,1768117841533,-500.0,0.00013273,2]
[401299039,1768117841541,-500.0,0.00013273,2]
[401299040,1768117841550,-500.0,0.00013273,2]
[401299041,1768117841558,-500.0,0.00013273,2]
[401299042,1768117841566,-402.502339,0.00013273,2]
[401299043,1768117841575,-500.0,0.00013273,2]
[401299044,1768117841584,-500.0,0.00013273,2]
[401299045,1768117841594,-500.0,0.00013288,2]
[401299046,1768117841603,-500.0,0.00013388,2]
[401299047,1768117841613,-2580.0,0.00013404,2]
[401299048,1768117841623,-500.0,0.00013425,2]
[401299049,1768117841633,-369.75,0.00013425,2]
[401299050,1768117841643,-2580.0,0.00013541,2]
[401299051,1768117841652,-500.0,0.00013562,2]
[401299052,1768117841662,-573.43,0.00013573,2]
[401299053,1768117841672,-573.43,0.00013573,2]
[401299054,1768117841682,-573.43,0.00013573,2]
[401299055,1768117841692,-573.43,0.00013573,2]
[401299056,1768117841701,-573.43,0.00013573,2]
[401299057,1768117841711,-573.43,0.00013573,2]
[401299058,1768117841721,-573.43,0.00013573,2]
[401299059,1768117841731,-299.98,0.00013573,2]
[401299060,1768117841741,-384.00760187,0.00013662,2]
[401299061,1768117841751,-300.0,0.00013673,2]
[401299062,1768117841762,-2580.0,0.00013678,2]
[401299063,1768117841771,-1000.0,0.00013698,2]
[401299064,1768117841781,-1000.0,0.00013698,2]
[401299065,1768117841791,-1000.0,0.00013698,2]
[401299066,1768117841803,-1000.0,0.00013698,2]
[401299067,1768117841813,-1000.0,0.00013698,2]
[401299068,1768117841823,-1000.0,0.00013698,2]
[401299069,1768117841832,-1000.0,0.00013698,2]
[401299070,1768117841843,-1016.42012615,0.00013698,2]
[401299071,1768117841852,-500.0,0.00013698,2]
[401299072,1768117841862,-500.0,0.00013698,2]
[401299073,1768117841873,-500.0,0.00013698,2]
[401299074,1768117841884,-500.0,0.00013698,2]
[401299075,1768117841894,-500.0,0.00013698,2]
[401299076,1768117841904,-500.0,0.00013698,2]
[401299077,1768117841915,-530.1272902,0.00013698,2]
[401299078,1768117841925,-500.0,0.00013698,2]
[401299079,1768117841934,-500.0,0.00013698,2]
[401299080,1768117841943,-500.0,0.00013698,2]
[401299081,1768117841952,-500.0,0.00013698,2]
[401299082,1768117841961,-500.0,0.00013698,2]
[401299083,1768117841971,-500.0,0.00013698,2]
[401299084,1768117841981,-500.0,0.00013698,2]
[401299085,1768117841991,-534.57834013,0.00013698,2]
[401299086,1768117842000,-500.0,0.00013698,2]
[401299087,1768117842010,-500.0,0.00013698,2]
[401299088,1768117842020,-500.0,0.00013698,2]
[401299089,1768117842030,-500.0,0.00013698,2]
[401299090,1768117842040,-500.0,0.00013698,2]
[401299091,1768117842049,-500.0,0.00013698,2]
[401299092,1768117842059,-500.0,0.00013698,2]
[401299093,1768117842069,-500.0,0.00013698,2]
[401299094,1768117842078,-239.37126777,0.00013698,2]
[401299095,1768117842088,-150.1,0.00013699,2]
[401299096,1768117842098,-500.0,0.00013699,2]
[401299097,1768117842108,-500.0,0.00013699,2]
[401299098,1768117842118,-500.0,0.00013699,2]
[401299099,1768117842128,-500.0,0.00013699,2]
[401299100,1768117842138,-611.85295008,0.00013699,2]
[401299101,1768117842147,-500.0,0.00013699,2]
[401299102,1768117842157,-500.0,0.00013699,2]
[401299103,1768117842167,-500.0,0.00013699,2]
[401299104,1768117842177,-500.0,0.00013699,2]
[401299105,1768117842186,-500.0,0.00013699,2]
[401299106,1768117842195,-500.0,0.00013699,2]
[401299107,1768117842205,-500.0,0.00013699,2]
[401299108,1768117842215,-250.0,0.00013699,2]
[401299109,1768117842224,-500.93038909,0.00013699,2]
[401299110,1768117842233,-500.0,0.00013699,2]
[401299111,1768117842243,-500.0,0.00013699,2]
[401299112,1768117842252,-500.0,0.00013699,2]
[401299113,1768117842262,-500.0,0.00013699,2]
[401299114,1768117842271,-413.61388111,0.00013699,2]
[401299115,1768117842280,-500.31275461,0.00013699,2]
[401299116,1768117842290,-500.0,0.00013699,2]
[401299117,1768117842299,-500.0,0.00013699,2]
[401299118,1768117842308,-504.31837873,0.00013699,2]
[401299119,1768117842318,-500.0,0.00013699,2]
[401299120,1768117842327,-252.81793801,0.00013699,2]
[401299121,1768117842337,-500.0,0.00013699,2]
[401299122,1768117842347,-500.0,0.00013699,2]
[401299123,1768117842356,-500.0,0.00013699,2]
[401299124,1768117842366,-500.0,0.00013699,2]
[401299125,1768117842376,-500.0,0.00013699,2]
[401299127,1768117842496,-500.0,0.00013699,2]
[401299129,1768117842506,-252.75899042,0.00013699,2]
[401299131,1768117842515,-159.05967354,0.00013699,2]
[401299132,1768117842525,-500.0,0.00013699,2]
[401299133,1768117842535,-500.0,0.00013699,2]
[401299134,1768117842544,-500.0,0.00013699,2]
[401299135,1768117842553,-500.0,0.00013699,2]
[401299136,1768117842563,-500.0,0.00013699,2]
[401299137,1768117842572,-192.77974704,0.00013699,2]
[401299138,1768117842581,-500.0,0.00013699,2]
[401299139,1768117842591,-500.0,0.00013699,2]
[401299140,1768117842600,-500.0,0.00013699,2]
[401299141,1768117842609,-500.0,0.00013699,2]
[401299142,1768117842619,-500.0,0.00013699,2]
[401299143,1768117842628,-500.0,0.00013699,2]
[401299144,1768117842638,-500.0,0.00013699,2]
[401299145,1768117842651,-366.95119537,0.00013699,2]
[401299146,1768117842661,-500.0,0.00013699,2]
[401299147,1768117842670,-441.79967602,0.00013699,2]
[401299148,1768117842680,-500.0,0.00013699,2]
[401299149,1768117842690,-500.0,0.00013699,2]
[401299150,1768117842700,-501.32276914,0.00013699,2]
[401299151,1768117842710,-500.0,0.00013699,2]
[401299152,1768117842719,-500.0,0.00013699,2]
[401299153,1768117842731,-268.13097792,0.00013699,2]
[401299154,1768117842741,-500.0,0.00013699,2]
[401299155,1768117842752,-500.0,0.00013699,2]
[401299156,1768117842762,-500.0,0.00013699,2]
[401299157,1768117842771,-500.0,0.00013699,2]
[401299158,1768117842782,-500.0,0.00013699,2]
[401299159,1768117842792,-500.0,0.00013699,2]
[401299160,1768117842804,-345.73139261,0.00013699,2]
[401299161,1768117842814,-500.0,0.00013699,2]
[401299162,1768117842825,-500.0,0.00013699,2]
[401299163,1768117842836,-500.0,0.00013699,2]
[401299164,1768117842848,-500.0,0.00013699,2]
[401299165,1768117842858,-500.0,0.00013699,2]
[401299166,1768117842868,-500.0,0.00013699,2]
[401299167,1768117842879,-500.0,0.00013699,2]
[401299168,1768117842890,-500.0,0.00013699,2]
[401299169,1768117842900,-500.0,0.00013699,2]
[401299170,1768117842910,-500.0,0.00013699,2]
[401299171,1768117842919,-295.9151759,0.00013699,2]
[401299172,1768117842929,-500.0,0.00013699,2]
[401299173,1768117842939,-801.07,0.000137,2]
[401299174,1768117842948,-2580.0,0.00013815,2]
[401299175,1768117842958,-506.38443798,0.00013821,2]
[401299176,1768117842968,-1113.91769968,0.00013821,2]
[401299177,1768117842977,-1000.0,0.00013821,2]
[401299178,1768117842987,-1000.0,0.00013821,2]
[401299179,1768117842997,-1000.0,0.00013821,2]
[401299180,1768117843007,-1000.0,0.00013821,2]
[401299181,1768117843017,-1046.83647191,0.00013821,2]
[401299182,1768117843030,-1000.0,0.00013821,2]
[401299183,1768117843040,-1000.0,0.00013821,2]
[401299184,1768117843049,-1000.0,0.00013821,2]
[401299185,1768117843059,-1000.0,0.00013821,2]
[401299186,1768117843068,-1000.0,0.00013821,2]
[401299187,1768117843078,-1000.0,0.00013821,2]
[401299188,1768117843088,-1000.0,0.00013821,2]
[401299189,1768117843099,-501.6206004,0.00013821,2]
[401299190,1768117843109,-1002.2053155,0.00013821,2]
[401299191,1768117843119,-1000.0,0.00013821,2]
[401299192,1768117843128,-178.09775665,0.00013821,2]
[401299193,1768117843138,-1000.0,0.00013821,2]
[401299194,1768117843149,-1000.0,0.00013821,2]
[401299195,1768117843159,-502.34729237,0.00013821,2]
[401299196,1768117843169,-1000.0,0.00013821,2]
[401299197,1768117843179,-1000.0,0.00013821,2]
[401299198,1768117843188,-1000.0,0.00013821,2]
[401299199,1768117843197,-1000.0,0.00013821,2]
[401299200,1768117843207,-1000.0,0.00013821,2]
[401299201,1768117843216,-1000.0,0.00013821,2]
[401299202,1768117843227,-1000.0,0.00013821,2]
[401299203,1768117843236,-1000.0,0.00013821,2]
[401299204,1768117843245,-1000.0,0.00013821,2]
[401299205,1768117843254,-1000.0,0.00013821,2]
[401299206,1768117843264,-1000.0,0.00013821,2]
[401299207,1768117843274,-1000.0,0.00013821,2]
[401299208,1768117843284,-973.2526551,0.00013821,2]
[401299209,1768117843293,-877.75810228,0.00013821,2]
[401299210,1768117843303,-1000.0,0.00013821,2]
[401299211,1768117843313,-1002.56714759,0.00013821,2]
[401299212,1768117843322,-1000.0,0.00013821,2]
[401299213,1768117843331,-1000.0,0.00013821,2]
[401299214,1768117843340,-1000.0,0.00013821,2]
[401299215,1768117843349,-500.0,0.00013836,2]
[401299216,1768117843361,-2580.0,0.00013952,2]
[401299217,1768117843371,-500.0,0.00013973,2]
[401299218,1768117843380,-2580.0,0.00014089,2]
[401299219,1768117843389,-500.0,0.0001411,2]
[401299220,1768117843400,-801.07,0.000142,2]
[401299221,1768117843410,-600.0,0.00014221,2]
[401299222,1768117843419,-2580.0,0.00014226,2]
[401299223,1768117843428,-1000.0,0.00014244,2]
[401299224,1768117843437,-492.0,0.00014244,2]
[401299225,1768117843447,-661.478767,0.00014247,2]
[401299226,1768117843456,-469.53593685,0.00014247,2]
[401299227,1768117843466,-1000.0,0.00014247,2]
[401299228,1768117843475,-1002.38932755,0.00014247,2]
[401299229,1768117843484,-1000.0,0.00014247,2]
[401299230,1768117843493,-1000.0,0.00014247,2]
[401299231,1768117843503,-171.67593478,0.00014247,2]
[401299232,1768117843512,-1000.0,0.00014247,2]
[401299233,1768117843521,-313.64870907,0.00014247,2]
[401299234,1768117843531,-1000.0,0.00014247,2]
[401299235,1768117843540,-1000.0,0.00014247,2]
[401299236,1768117843549,-1000.0,0.00014247,2]
[401299237,1768117843558,-1000.0,0.00014247,2]
[401299238,1768117843568,-1000.0,0.00014247,2]
[401299239,1768117843578,-1000.0,0.00014247,2]
[401299240,1768117843587,-1029.61129365,0.00014247,2]
[401299241,1768117843597,-875.35271766,0.00014247,2]
[401299242,1768117843606,-1000.62599215,0.00014247,2]
[401299243,1768117843615,-1000.0,0.00014247,2]
[401299244,1768117843625,-1003.14554213,0.00014247,2]
[401299245,1768117843634,-1000.0,0.00014247,2]
[401299246,1768117843643,-1000.0,0.00014247,2]
[401299247,1768117843652,-1000.0,0.00014247,2]
[401299248,1768117843662,-1000.0,0.00014247,2]
[401299249,1768117843672,-1000.0,0.00014247,2]
[401299250,1768117843683,-1000.0,0.00014247,2]
[401299251,1768117843692,-1000.0,0.00014247,2]
[401299252,1768117843702,-1000.0,0.00014247,2]
[401299253,1768117843711,-283.3787305,0.00014247,2]
[401299255,1768117843721,-1000.0,0.00014247,2]
[401299256,1768117843730,-1000.0,0.00014247,2]
[401299258,1768117843740,-1000.0,0.00014247,2]
[401299260,1768117843749,-1000.0,0.00014247,2]
[401299261,1768117843758,-1000.0,0.00014247,2]
[401299262,1768117843768,-1000.0,0.00014247,2]
[401299263,1768117843777,-505.42705469,0.00014247,2]
[401299264,1768117843787,-1000.0,0.00014247,2]
[401299265,1768117843796,-638.41119879,0.00014247,2]
[401299266,1768117843809,-1000.0,0.00014247,2]
[401299267,1768117843819,-500.0,0.00014247,2]
[401299268,1768117843828,-1000.0,0.00014247,2]